Cogmind - Beta 14 @@@ ROGUE MODE // 2025.04.12 @ 08:42:42 Player: Koznoz Result: Destroyed by S-10 Pest with Light Assault Rifle Performance ------------- Evolutions (0) 0 Regions Visited (2) 400 Robots Destroyed (8) 40 Value Destroyed (143) 143 Prototype IDs (0) 0 Alien Tech Used (0) 0 Bonus (-18) -18 TOTAL SCORE: 565 Bonus ------- Friendly Fire -18 Cogmind --------- Core Integrity 0/250 Matter 282/300 Energy 100/100 System Corruption 0% Temperature Cool (0) Movement Rolling (100) Location -10/Mines Parts ------- > --- POWER (1) -------- (None) > --- PROPULSION (2) --- Compact Wheel Compact Wheel > --- UTILITY (2) ------ Small Storage Unit Tractor Beam > --- WEAPON (2) ------- Light Assault Rifle > --- INVENTORY (8) ---- Aluminum Leg Tractor Beam Small Laser Assault Rifle Mining Laser Peak State ------------ > --- POWER ------------ Light Ion Engine > --- PROPULSION ------- Aluminum Leg Aluminum Leg > --- UTILITY ---------- Small Storage Unit Tractor Beam > --- WEAPON ----------- Assault Rifle Light Assault Rifle > --- INVENTORY -------- Tractor Beam Small Laser Assault Rifle Mining Laser [Rating: 7] Favorites ----------- Power Light Ion Engine Engine Light Ion Engine Propulsion Aluminum Leg Leg Aluminum Leg Wheel Compact Wheel Utility Tractor Beam Device Tractor Beam Storage Small Storage Unit Weapon Light Assault Rifle Ballistic Gun Light Assault Rifle Build | -11 -10 -10 ------- Run | Yrd Mat Min Slots Evolved . | . . . Power . | . . . Propulsion . | . . . Utility . | . . . Weapon . | . . . Parts Attached 11 | 5 . 6 Power 2 | 1 . 1 Engine 2 | 1 . 1 Core . | . . . Reactor . | . . . Propulsion 4 | 2 . 2 Treads . | . . . Leg 2 | 2 . . Wheel 2 | . . 2 Hover . | . . . Flight . | . . . Utility 3 | . . 3 Device 2 | . . 2 Storage 1 | . . 1 Processor . | . . . Hackware . | . . . Protection . | . . . Artifact . | . . . Weapon 2 | 2 . . Energy Gun . | . . . Energy Cannon . | . . . Ballistic Gun 2 | 2 . . Ballistic Cannon . | . . . Launcher . | . . . Special Weapon . | . . . Impact Weapon . | . . . Slashing Weapon . | . . . Piercing Weapon . | . . . Special Melee Weapon . | . . . Unidentified Prototypes . | . . . Parts Lost 3 | . . 3 Power 1 | . . 1 Propulsion 1 | . . 1 Utility . | . . . Weapon 1 | . . 1 Highest Loss Streak 3 | . . 3 To Critical Strikes . | . . . Average Slot Usage (%) 86 | . 71 90 Engine 11 | . 14 11 Leg 23 | . 28 22 Wheel 4 | . . 5 Device 9 | . . 11 Storage 9 | . . 11 Ballistic Gun 27 | . 28 26 Peak Build Rating 7 | 5 5 7 Average Rating 5 | 3 5 6 On Entrance 3 | . 5 5 Naked Turns . | . . . Heaviest Build 12 | 6 6 12 Greatest Support 32 | 20 20 32 Greatest Overweight (x) . | . . . Average Overweight (x) . | . . . Largest Inventory Capacity 8 | 5 5 8 Average Capacity 6 | 5 5 7 Most Carried 7 | 4 5 7 Average Carried 4 | 1 3 5 Final Capacity 8 | 5 5 8 Final Carried 5 | 4 4 5 Class Distribution -------------------- 90% | Mutant 9% | Scavenger-Mutant Dominant Class ---------------- Mutant | -10/Materials Mutant | -10/Mines Resources | -11 -10 -10 ----------- Run | Yrd Mat Min Matter Collected 361 | 258 . 103 Remotely 79 | . . 79 Salvage Created 208 | 32 . 176 Parts 15 | 1 . 14 Haulers Intercepted . | . . . Recyclers Shooed . | . . . Parts Field Recycled . | . . . Retrieved Matter . | . . . Parts Self-Destructed . | . . . Prevented . | . . . Kills | -11 -10 -10 ------- Run | Yrd Mat Min Combat Hostiles Destroyed 7 | 1 . 6 Guns 7 | 1 . 6 Classes Destroyed 4 | 1 . 3 Recycler 1 | . . 1 Swarmer 5 | . . 5 Grunt 1 | 1 . . Demolisher 1 | . . 1 Best Kill Streak 4 | 1 . 4 Combat Bots Only 3 | 1 . 3 Max Kills in Single Turn 1 | 1 . 1 Gunslinging . | . . . Exploded . | . . . Melee . | . . . Uniques/NPCs Destroyed . | . . . Combat | -11 -10 -10 -------- Run | Yrd Mat Min Hostile Shots Fired 91 | 2 . 89 Missed 24 | . . 24 Damage Taken 728 | 24 . 704 Core 253 | . . 253 Absorbed by Shields . | . . . Core Remaining (%) 100 | 100 . . Volleys Fired 20 | 2 2 16 Largest 2 | 2 2 2 Hottest 40 | 40 40 40 Shots Fired 40 | 4 4 32 Gun 40 | 4 4 32 Cannon . | . . . Launcher . | . . . Special . | . . . Kinetic 40 | 4 4 32 Thermal . | . . . Explosive . | . . . Electromagnetic . | . . . Robot Hit Streak 4 | 2 . 4 Robot Miss Streak 6 | 1 4 6 Penetration Max . | . . . Secondary Targets 4 | . . 4 Max Gunslinging Chain 1 | . . 1 Shots Hit Robots 15 | 3 . 12 Core Hits 14 | 2 . 12 Critical Kills . | . . . Critical Parts Destroyed . | . . . Critical Strikes . | . . . Melee Attacks . | . . . Impact . | . . . Slashing . | . . . Piercing . | . . . Sneak Attacks . | . . . Combat Hostiles . | . . . Follow-up Attacks . | . . . Damage Inflicted 190 | 35 . 155 Guns 189 | 35 . 154 Cannons . | . . . Explosions . | . . . Melee . | . . . Ramming 1 | . . 1 Kinetic 189 | 35 . 154 Thermal . | . . . Explosive . | . . . Electromagnetic . | . . . Impact . | . . . Slashing . | . . . Piercing . | . . . Highest Corruption . | . . . Average Corruption . | . . . Corruption Purged . | . . . Corruption Blocked . | . . . Overload Shots . | . . . Overflow Damage . | . . . Projectiles . | . . . Explosions . | . . . Melee . | . . . Knockbacks . | . . . Impact . | . . . Kinetic . | . . . Secondary . | . . . Self-Inflicted Damage . | . . . Shots . | . . . Rammed 2 | . . 2 Targets Rammed 2 | . . 2 Kicked . | . . . Crushed . | . . . Highest Temperature 6 | 6 . . Average Temperature 6 | 6 . . Received Heat Transfer 12 | 12 . . Siege Activations . | . . . Robots Corrupted . | . . . Combat Hostiles . | . . . Parts Fried . | . . . Impact Corruptions . | . . . Robots Melted . | . . . Combat Hostiles . | . . . Parts Melted . | . . . Heat Transferred . | . . . Parts Sabotaged . | . . . Parts Stolen . | . . . Parts Stripped . | . . . Power Chain Reactions . | . . . Alert | -11 -10 -10 ------- Run | Yrd Mat Min Peak Influence 148 | 35 22 148 Initial 22 | . 22 8 Average 61 | 6 22 100 Maximum Alert Level . | . . . Low Security (%) 100 | 100 100 100 Level 1 . | . . . Level 2 . | . . . Level 3 . | . . . Level 4 . | . . . Level 5 . | . . . High Security . | . . . Max Security . | . . . Squads Dispatched 1 | . 1 . Investigation . | . . . Extermination . | . . . Reinforcement 1 | . 1 . Assault . | . . . Garrison . | . . . Intercept . | . . . Searches Triggered . | . . . Construction Impeded . | . . . Haulers Reinforced . | . . . Active Scanning Responses . | . . . Cargo Convoy Interrupts . | . . . Stealth | -11 -10 -10 --------- Run | Yrd Mat Min Distress Signals . | . . . Communications Jammed . | . . . Distress Signals . | . . . Times Spotted 21 | 1 2 18 Peak Tracking Total 10 | 1 2 10 Tactical Retreats 1 | . . 1 Traps | -11 -10 -10 ------- Run | Yrd Mat Min Traps Triggered . | . . . Indirectly . | . . . Trap Hack Attempts . | . . . Triggered . | . . . Disarmed . | . . . Reprogrammed . | . . . Reused . | . . . Traps Extracted . | . . . Installed . | . . . Triggered . | . . . Machines | -11 -10 -10 ---------- Run | Yrd Mat Min Machines Disabled . | . . . Max in Single Turn . | . . . Machines Repaired . | . . . Machines Dismantled . | . . . Machines Sabotaged . | . . . Overloaded Fab Kills . | . . . Hacking | -11 -10 -10 --------- Run | Yrd Mat Min Machines Accessed . | . . . Terminals . | . . . Fabricators . | . . . Repair Stations . | . . . Recycling Units . | . . . Scanalyzers . | . . . Garrison Access . | . . . Total Hacks . | . . . Successful . | . . . Failed . | . . . Catastrophic . | . . . Database Lockouts . | . . . Manual . | . . . Terminals . | . . . Fabricators . | . . . Repair Stations . | . . . Recycling Units . | . . . Scanalyzers . | . . . Garrison Access . | . . . Terminal Hacks . | . . . Fabricator Hacks . | . . . Repair Station Hacks . | . . . Recycling Unit Hacks . | . . . Scanalyzer . | . . . Garrison Access Hacks . | . . . Unauthorized Hacks . | . . . Terminals . | . . . Fabricators . | . . . Repair Stations . | . . . Recycling Units . | . . . Scanalyzers . | . . . Garrison Access . | . . . Data Cores Recovered . | . . . Used . | . . . Hacking Detections . | . . . Full Trace Events . | . . . Feedback Events . | . . . Feedback Blocked . | . . . Robot Schematics Acquired . | . . . Robots Built . | . . . Authchips . | . . . Time . | . . . Total Robot Build Rating . | . . . Part Schematics Acquired . | . . . Parts Built . | . . . Authchips . | . . . Time . | . . . Total Part Build Rating . | . . . Parts Repaired . | . . . Time . | . . . Parts Recycled . | . . . Recycled Matter . | . . . Retrieved Matter . | . . . Retrieved Components . | . . . Parts Scanalyzed . | . . . Part Schematics Acquired . | . . . Parts Damaged . | . . . Bothacking | -11 -10 -10 ------------ Run | Yrd Mat Min Used RIF Installer . | . . . Robots Hacked . | . . . Non-combat . | . . . Combat . | . . . Robot Hacks Applied . | . . . Relay Couplers Released . | . . . Fabnet Peak Effective % . | . . . Robots Rewired . | . . . Allies Hacked . | . . . Hacks Repelled . | . . . Allies | -11 -10 -10 -------- Run | Yrd Mat Min Total Allies . | . . . Largest Group . | . . . Highest-Rated Group . | . . . Highest-Rated Ally . | . . . Total Orders . | . . . Ally Attacks . | . . . Total Damage . | . . . Kills . | . . . Allies Corrupted . | . . . Allies Melted . | . . . Intel | -11 -10 -10 ------- Run | Yrd Mat Min Robot Analysis Total . | . . . Derelict Logs Recovered 2 | . . 2 Drone Launches . | . . . Drone Recoveries . | . . . Exploration | -11 -10 -10 ------------- Run | Yrd Mat Min Turns Passed 419 | 122 64 233 Spaces Moved 292 | 98 47 147 Core 17 | 17 . . Treads . | . . . Legs 248 | 81 47 120 Wheels 27 | . . 27 Hover . | . . . Flight . | . . . Fastest Speed 50 | 50 120 100 Average Speed 114 | 107 120 116 Slowest Speed 120 | 120 120 120 Overloaded Moves . | . . . Propulsion Burnouts . | . . . Robots Hopped . | . . . Cave-ins Triggered . | . . . Exploration Rate (%) 17 | 6 9 37 Regions Visited 2 Branch Regions 1 Pre-discovered Areas 1 | . . 1 Known Exits Taken . | . . . Unknown Exits Taken 2 | 1 1 . Scrap Searched . | . . . Spaces Dug . | . . . Terrain Destroyed . | . . . Melee . | . . . Projectile . | . . . AOE . | . . . Terrain Rammed . | . . . Walls Destroyed . | . . . Machines Disabled . | . . . Actions | -11 -10 -10 --------- Run | Yrd Mat Min Total 339 | 108 52 179 Wait 3 | . . 3 Move 290 | 97 46 147 Hop . | . . . Pick Up 9 | 4 2 3 Fast Attach 6 | 5 . 1 Attach 2 | . . 2 Detach . | . . . Swap 3 | . . 3 Drop 4 | . 2 2 Fire 20 | 2 2 16 Melee . | . . . Ram 2 | . . 2 Kick . | . . . Crush . | . . . Escape Stasis . | . . . Rewire . | . . . Trap . | . . . Miscellaneous . | . . . Route ------- -11/Scrapyard -10/Materials -10/Mines History --------- Turn | Location | Event 2 | -11/Scrapyard | Met Revision 17 92 | -11/Scrapyard | Discovered new exit (range 8) 123 | -11/Scrapyard | Entered Materials 145 | -10/Materials | Discovered new exit (range 12) 160 | -10/Materials | Met 8R-AWN 187 | -10/Materials | Entered Mines 189 | -10/Mines | Followed 8R-AWN into the Mines 190 | -10/Mines | Met a Derelict bent on vengeance 213 | -10/Mines | Learned location of Zion (-6) 318 | -10/Mines | Build established: Mutant 350 | -10/Mines | Assembled infested the area 355 | -10/Mines | Assisted by a Guerilla fighting off Assembled 379 | -10/Mines | Core integrity fell below 50% 406 | -10/Mines | Core integrity fell below 20% 414 | -10/Mines | Learned Materials terminal intel 420 | -10/Mines | Destroyed by S-10 Pest with Light Assault Rifle Last Messages --------------- 00376_ D-53 Grenadier knocked back. 00376_ HV Slug penetrates D-53 Grenadier. 00378_ HV Slug penetrates Wall. 00380_ The unstable cave ceiling collapses. 00380_ HV Slug penetrates Wall. 00382_ FU-NE0(h) destroyed. 00392_ as-16115 destroyed. 00393_ Acquired 7 matter. 00399_ D-53 Grenadier knocked back. 00400_ D-53 Grenadier destroyed. 00400_ Switching to secondary target: as-78217. 00403_ as-78217 destroyed. 00404_ Assault Rifle destroyed. 00405_ Slammed into S-10 Pest. 00405_ Destabilizing: System interference. 00405_ Lgt. Assault Rifle temporarily disabled. 00406_ Slammed into S-10 Pest. 00414_ Acquired derelict log, extracted data. Data stored: Materials terminal intel. Map ----- +----------------------------------------------------+ | ??????????????????????????????? | | ??????????????????????????????? | | ??????????????????????????????? | | ??????????????????????????????? | | ??????????????????????????????? | | ??????????????????????????????? | | ??????????????????????????????? | | ??????????????????????????????? | | ??????????????????????????????? | | ###???????????????????????????? | | #???????????????????????????? | | ??????????????????????????????? | | # ###?????????????????????????? | | ??????????????????????? | | ####??????????????????????????? | | ??????????????????????????????? | | ??????????????????????????????? | | ?##????????????????#??????????? | | ?#"##????????????? ??????????? | | ## ##???????????? ??????????? | | #" "???????????? """???????? | | %" "#???????????? """???????? | | " ###?????????? """???????? | | # ##????????? ???????? | | # #?????????# #######?? | | #?????????# s @s #?? | | ###????????# ##### #?? | | ## % #????????# #???# #?? | | ?# ##??????## #???# #?? | | ?# ##????## ###?# #?? | | ?# #????# ### #?? | | ?## ##??### # ##? | | ?# #### #? | | ### ## #? | | % # ##? | | # ####?? | | ### #### !% #####????? | | ??# #??## ##????????? | | ??# #???# #?????????? | | ### #???# ##?????????? | | #??## ##??????????? | | #?## ##??????????? | | ### #??????????? | | % #?????????? | | #?????????? | | ## ####### # ##?????????? | | # #?# #?????# ####??????????? | | ## ??# ?????# #?????????????? | | ?#???####????# #?????????????? | | ?????????????# #?????????????? | +----------------------------------------------------+ Best States ------------- Heat Dissipation 25 Energy Generation 10 Energy Capacity 125 Matter Stores 300 Matter Capacity 300 Sight Range 16 Terrain Scan Density 10 Evasion (%) 55 Item Schematics ----------------- None Robot Schematics ------------------ None Fabricated ------------ Nothing Alien Tech Used ----------------- None Achievements -------------- None Challenges ------------ None Game ------ Seed RelayBiomechanicalMatrix Manual? 0 Play Time 00:13:42 Cumulative 3.5 hours Start 2025.04.11 @ 20:45:33 End 2025.04.12 @ 08:42:42 Sessions 5 Manual Loads 0 Difficulty Rogue Special Mode None Game No. 3 Rogue 1 Adventurer 2 Explorer 0 Win Type - Total 0 Types 0/0/0/0/0/0/0/0/0 Lore% 1 Gallery% 4 Achievement% 6 Wizard Run 0 Options --------- Layout 1 ASCII 0 Keyboard 1 Movement Numpad Keybinds 0 Fullscreen 2 Font 24/X11 Map View 50x35 Zoom Use 2% Tactical HUD 1 Map Filters NONE Filters NONE Steam 1 RUN: 584aed59-c433-4a41-a205-27a2426e97b1